Cogmind - Beta 16.1 @@@ ROGUE MODE // 2026.04.26 @ 07:42:43 Player: coopco Result: Destroyed by S-43 Plague with Heavy Machine Gun Performance ------------- Evolutions (7) 3500 Regions Visited (19) 3800 Robots Destroyed (88) 440 Value Destroyed (4242) 4242 Prototype IDs (11) 220 Alien Tech Used (0) 0 Bonus (2766) 2766 TOTAL SCORE: 14968 Bonus ------- Pacifist 200 High Alert Combat Kills 94 Follower Combat Kills 372 Entered Garrisons 600 Used RIF Installer 1000 Entered DSFs 500 Cogmind --------- Core Integrity 0/1300 Matter 290/300 Energy 7/100 System Corruption 6% Temperature Cool (0) Movement Flying (117) Ox1 Location -3/Garrison Parts ------- > --- POWER (2) -------- (None) > --- PROPULSION (4) --- Improved Gyrokinetic Inverter Xenon Bombardment Thruster Xenon Bombardment Thruster > --- UTILITY (12) ----- Large Storage Unit Advanced Weight Redist. System Advanced System Shield > --- WEAPON (3) ------- (None) > --- INVENTORY (15) --- Linear Gravjet Impulse Thruster Array Advanced Heat Sink Remote Force Field Hacking Suite System Shield Authchip [R/Combat] Relay Coupler [Brawler] (22) Relay Coupler [Brawler] (30) Relay Coupler [Sentry] (19) Relay Coupler [Demolisher] (22) Relay Coupler [Hunter] (14) Advanced Datajack Peak State ------------ > --- POWER ------------ Micro Antimatter Reactor > --- PROPULSION ------- Improved Airjet Linear Gravjet Improved Antigrav System Improved Gyrokinetic Inverter > --- UTILITY ---------- Large Storage Unit Advanced Weight Redist. System Active Sensor Suite Improved Targeting Computer Hacking Suite Advanced Hacking Suite Advanced System Shield Relay Coupler [Swarmer] Relay Coupler [Sentry] > --- WEAPON ----------- Phase Gun Advanced Datajack Remote Datajack > --- INVENTORY -------- Micro Fission Core Gravmag Array Advanced Heat Sink High-capacity Storage Unit Remote Force Field Hacking Suite Authchip [R/Combat] Relay Coupler [Brawler] Relay Coupler [Brawler] Relay Coupler [Sentry] Relay Coupler [Sentry] Relay Coupler [Demolisher] Relay Coupler [Hunter] Relay Coupler [Behemoth] [Rating: 112] Favorites ----------- Power Neutrino Core Engine Improved Deuterium Engine Power Core Neutrino Core Reactor Light Antimatter Reactor Propulsion Light Armored Exoskeleton Treads Advanced Treads Leg Light Armored Exoskeleton Wheel Armored Wheel Hover Unit Improved Airjet Flight Unit Xenon Bombardment Thruster Utility High-capacity Storage Unit Device Advanced Weight Redist. System Storage High-capacity Storage Unit Processor Improved Targeting Computer Hackware Relay Coupler [Swarmer] Protection Improved Light Armor Plating Weapon Remote Datajack Energy Gun Heavy Laser Energy Cannon Plasma Cannon Ballistic Gun High-powered Shotgun Launcher Rocket Launcher Special Weapon Remote Datajack Slashing Weapon Katana Piercing Weapon Spear Special Melee Weapon Advanced Datajack Build | -11 -10 -10 -9 -8 -7 -7 -7 -7 -6 -6 -6 -6 -6 -5 -5 -5 -4 -3 -3 ------- Run | Yrd Mat Min Mat Mat Fac Gar Fac DSF Fac Was Fac Gar Fac Fac Upp Upp Fac Res Gar Slots Evolved 14 | . . . 2 2 2 . . . 2 . . . . 2 . . 2 2 . Power 1 | . . . . . . . . . . . . . . . . . . 1 . Propulsion 2 | . . . 2 . . . . . . . . . . . . . . . . Utility 10 | . . . . 2 1 . . . 2 . . . . 2 . . 2 1 . Weapon 1 | . . . . . 1 . . . . . . . . . . . . . . Parts Attached 145 | 6 4 . 19 16 12 25 . 17 9 . 6 1 5 3 . . 17 . 5 Power 22 | 1 1 . 1 2 1 8 . 2 . . 1 . 2 1 . . 2 . . Engine 7 | 1 1 . 1 . 1 . . 1 . . 1 . 1 . . . . . . Core 11 | . . . . 2 . 6 . . . . . . 1 1 . . 1 . . Reactor 4 | . . . . . . 2 . 1 . . . . . . . . 1 . . Propulsion 44 | 2 2 . 8 6 4 9 . 4 . . . . . . . . 7 . 2 Treads 13 | 2 . . 4 1 4 . . . . . . . . . . . 2 . . Leg 18 | . . . . 5 . 9 . 4 . . . . . . . . . . . Wheel 3 | . . . 3 . . . . . . . . . . . . . . . . Hover 8 | . 2 . 1 . . . . . . . . . . . . . 5 . . Flight 2 | . . . . . . . . . . . . . . . . . . . 2 Utility 37 | 1 1 . 5 3 3 3 . 2 5 . 4 1 2 2 . . 4 . 1 Device 11 | . 1 . . 1 . . . 1 1 . 3 . 2 1 . . 1 . . Storage 4 | 1 . . 2 . 1 . . . . . . . . . . . . . . Processor 5 | . . . 1 1 1 . . 1 1 . . . . . . . . . . Hackware 13 | . . . . . 1 2 . . 3 . 1 1 . 1 . . 3 . 1 Protection 4 | . . . 2 1 . 1 . . . . . . . . . . . . . Artifact . | . . . . . . . . . . . . . . . . . . . . Weapon 42 | 2 . . 5 5 4 5 . 9 4 . 1 . 1 . . . 4 . 2 Energy Gun 13 | 1 . . 2 1 . 3 . 3 1 . 1 . . . . . 1 . . Energy Cannon 3 | . . . . . . . . 3 . . . . . . . . . . . Ballistic Gun 16 | 1 . . 1 3 4 2 . 1 1 . . . . . . . 1 . 2 Ballistic Cannon . | . . . . . . . . . . . . . . . . . . . . Launcher 1 | . . . . . . . . 1 . . . . . . . . . . . Special Weapon 3 | . . . . . . . . 1 2 . . . . . . . . . . Impact Weapon . | . . . . . . . . . . . . . . . . . . . . Slashing Weapon 3 | . . . 2 1 . . . . . . . . . . . . . . . Piercing Weapon 1 | . . . . . . . . . . . . . 1 . . . . . . Special Melee Weapon 2 | . . . . . . . . . . . . . . . . . 2 . . Unidentified Prototypes 3 | . . . . 1 . . . . . . . . . 1 . . 1 . . Parts Lost 62 | . . . . 7 1 13 . 14 5 2 1 . . . . . 5 . 14 Power 10 | . . . . 1 . 4 . 2 1 . . . . . . . 1 . 1 Propulsion 16 | . . . . 4 . 5 . 4 . . . . . . . . 1 . 2 Utility 15 | . . . . . 1 2 . 2 2 . 1 . . . . . . . 7 Weapon 21 | . . . . 2 . 2 . 6 2 2 . . . . . . 3 . 4 Highest Loss Streak 14 | . . . . 6 1 6 . 8 3 2 1 . . . . . 3 . 14 To Critical Strikes 2 | . . . . . . 1 . 1 . . . . . . . . . . . Average Backups 17 | 2 6 7 14 14 17 19 19 18 17 18 17 18 18 19 19 19 16 14 13 Power 1 | . 1 1 1 2 2 2 1 . . . . 1 1 1 1 1 . . . Propulsion 2 | 1 3 4 3 4 4 3 1 1 1 1 1 1 1 2 3 3 1 1 2 Utility 10 | . . . 5 7 5 9 14 14 14 16 15 15 15 15 14 14 12 11 10 Weapon 1 | . 1 2 3 . 5 4 3 1 . . 1 1 . . . . . 1 . Tool/Special . | . . . . . . . . . . . . . . . . . . . . Unused Backups 42 | . 3 . 1 4 4 6 . 3 . . 1 2 1 3 1 . 2 . 11 Power 4 | . . . . . . 3 . . . . . . . 1 . . . . . Propulsion 9 | . 2 . . 1 2 2 . 1 . . . . . . . . . . 1 Utility 25 | . . . . 3 2 1 . 1 . . 1 2 . 2 1 . 2 . 10 Weapon 3 | . 1 . 1 . . . . . . . . . 1 . . . . . . Tool/Special 1 | . . . . . . . . 1 . . . . . . . . . . . Average Slot Usage (%) 85 | . 83 100 99 91 98 94 100 80 79 74 77 86 85 76 76 76 77 76 62 Engine 2 | . 14 14 11 2 5 . . . . . 3 6 2 . . . . . . Core 2 | . . . . 5 1 3 . . . . . . 3 5 5 5 3 4 2 Treads 7 | . 5 . 34 3 21 11 . . . . . . . . . . 4 . . Leg 10 | . . . . 16 8 17 30 18 13 13 13 13 13 11 11 11 1 . . Wheel 1 | . . . 5 12 . . . . . . . . . . . . . . . Hover 2 | . 19 28 2 . . . . . . . . . . . . . 9 14 11 Device 7 | . 1 14 3 9 3 . . 2 11 6 10 18 12 11 11 11 10 14 14 Storage 6 | . 14 14 11 9 7 7 7 7 6 6 6 6 6 5 5 5 5 4 4 Processor 9 | . . . 4 14 21 16 7 12 10 6 6 6 6 5 5 5 5 4 2 Hackware 11 | . . . . . 3 8 23 11 13 26 20 14 20 17 17 17 21 19 17 Energy Gun 4 | . 14 14 5 4 . 5 7 8 6 3 2 6 6 5 5 5 2 4 2 Ballistic Gun 6 | . 14 14 5 7 21 14 15 2 . 6 6 6 4 . . . 1 4 2 Special Weapon 2 | . . . . . . . . . 5 3 5 6 6 5 5 5 3 . . Slashing Weapon 1 | . . . 10 5 1 . . 2 3 . . . . . . . . . . Piercing Weapon 1 | . . . . . . . . . . . . . 1 5 5 5 2 . . Peak Build Rating 112 | 6 7 7 24 28 44 53 52 54 59 55 62 63 63 88 88 88 112 108 108 Average Rating 55 | 4 6 7 21 23 39 41 52 45 54 51 54 62 61 82 88 88 97 107 89 On Entrance 51 | . 6 7 7 19 28 43 52 52 51 55 45 62 63 61 88 88 88 107 108 Avg Prop Armor Cover (%) 8 | . . . 10 10 4 12 . . . 15 15 . . . . . 4 . 12 Naked Turns . | . . . . . . . . . . . . . . . . . . . . Heaviest Build 67 | 13 13 12 35 37 60 62 62 67 62 53 67 63 63 67 67 67 67 40 40 Greatest Support 98 | 40 40 12 88 50 98 98 78 78 69 60 69 69 69 69 69 69 69 43 43 Greatest Overweight (x) 2 | . 2 . 2 2 . 2 . 2 . 1 1 . . . . . 1 . 2 Average Overweight (x) . | . . . . . . . . . . . . . . . . . . . . Largest Inventory Capacity 20 | 8 8 8 15 15 20 20 20 20 20 20 20 20 20 20 20 20 20 15 15 Average Capacity 18 | 6 8 8 14 15 18 20 20 20 20 20 20 20 20 20 20 20 17 15 15 Most Carried 20 | 4 8 8 15 15 20 20 19 20 20 20 20 20 20 20 20 20 20 15 15 Average Carried 17 | 2 6 7 14 14 18 19 19 19 19 20 19 19 19 19 19 20 16 14 14 Final Capacity 20 | 8 8 8 15 15 20 20 20 20 20 20 20 20 20 20 20 20 15 15 15 Final Carried 20 | 4 7 8 15 13 20 19 19 20 20 20 20 20 20 20 20 20 14 15 14 Class Distribution -------------------- 19% | Bothacker-Assassin 15% | Mutant 15% | Bothacker-Mutant 13% | Bothacker-Gunner 12% | Gunner 9% | Scavenger-Mutant 4% | Scavenger-Gunner 3% | Bothacker-Scout 3% | Bothacker-Ninja Dominant Class ---------------- Mutant | -10/Materials Mutant | -10/Mines Mutant | -9/Materials Scavenger-Mutant | -8/Materials Gunner | -7/Factory Gunner | -7/Garrison Hacker-Gunner | -7/Factory Bothacker-Mutant | -7/DSF Bothacker-Mutant | -6/Factory Bothacker-Gunner | -6/Waste Bothacker-Mutant | -6/Factory Bothacker-Gunner | -6/Garrison Bothacker-Gunner | -6/Factory Bothacker-Assassin | -5/Factory Bothacker-Assassin | -5/Upper Caves Bothacker-Assassin | -5/Upper Caves Bothacker-Assassin | -4/Factory Bothacker-Ninja | -3/Research Bothacker-Ninja | -3/Garrison Resources | -11 -10 -10 -9 -8 -7 -7 -7 -7 -6 -6 -6 -6 -6 -5 -5 -5 -4 -3 -3 ----------- Run | Yrd Mat Min Mat Mat Fac Gar Fac DSF Fac Was Fac Gar Fac Fac Upp Upp Fac Res Gar Matter Collected 3004 | 144 . 91 310 360 345 851 . 196 147 . 177 . . . 144 . 177 38 24 Remotely . | . . . . . . . . . . . . . . . . . . . . Salvage Created 3723 | . . . 717 679 400 1046 . 515 161 . 100 . . . . . 105 . . Parts 203 | . . . 46 36 31 43 . 25 7 . 2 . . . . . 13 . . Haulers Intercepted . | . . . . . . . . . . . . . . . . . . . . Recyclers Shooed 1 | . . . . . . . . . . . 1 . . . . . . . . Parts Field Recycled . | . . . . . . . . . . . . . . . . . . . . Retrieved Matter . | . . . . . . . . . . . . . . . . . . . . Parts Self-Destructed . | . . . . . . . . . . . . . . . . . . . . Prevented . | . . . . . . . . . . . . . . . . . . . . Parts Restored . | . . . . . . . . . . . . . . . . . . . . Kills | -11 -10 -10 -9 -8 -7 -7 -7 -7 -6 -6 -6 -6 -6 -5 -5 -5 -4 -3 -3 ------- Run | Yrd Mat Min Mat Mat Fac Gar Fac DSF Fac Was Fac Gar Fac Fac Upp Upp Fac Res Gar Combat Hostiles Destroyed 83 | . . . 17 14 11 23 . 11 5 . . . . . . . 2 . . Melee 12 | . . . 7 5 . . . . . . . . . . . . . . . Guns 65 | . . . 10 9 11 23 . 6 4 . . . . . . . 2 . . Cannons 2 | . . . . . . . . 2 . . . . . . . . . . . AOE 3 | . . . . . . . . 3 . . . . . . . . . . . Classes Destroyed 11 | . . . 3 3 3 . . 2 . . . . . . . . . . . Recycler 2 | . . . . . 1 . . . . . 1 . . . . . . . . Watcher 2 | . . . . 1 1 . . . . . . . . . . . . . . Swarmer 20 | . . . 4 1 7 3 . . 3 . . . . . . . 2 . . Grunt 38 | . . . 8 8 . 16 . 6 . . . . . . . . . . . Brawler 2 | . . . . 1 . 1 . . . . . . . . . . . . . Duelist 1 | . . . . 1 . . . . . . . . . . . . . . . Sentry 11 | . . . 5 3 1 1 . 1 . . . . . . . . . . . Specialist 3 | . . . . . . . . 3 . . . . . . . . . . . Hunter 5 | . . . . . 2 2 . . 1 . . . . . . . . . . Programmer 3 | . . . . . 1 . . . 1 . . . . . . . 1 . . Heavy 1 | . . . . . . . . 1 . . . . . . . . . . . Best Kill Streak 5 | . . . 4 4 4 5 . 4 2 . 1 . . . . . 1 . . Combat Bots Only 5 | . . . 4 4 4 5 . 4 2 . . . . . . . 1 . . Max Kills in Single Turn 2 | . . . 2 1 2 2 . 1 1 . 1 . . . . . 1 . . Gunslinging 1 | . . . 1 . 1 1 . . . . . . . . . . . . . Exploded 1 | . . . . . . . . 1 . . . . . . . . . . . Melee 1 | . . . 1 1 . . . . . . . . . . . . . . . Uniques/NPCs Destroyed . | . . . . . . . . . . . . . . . . . . . . Combat | -11 -10 -10 -9 -8 -7 -7 -7 -7 -6 -6 -6 -6 -6 -5 -5 -5 -4 -3 -3 -------- Run | Yrd Mat Min Mat Mat Fac Gar Fac DSF Fac Was Fac Gar Fac Fac Upp Upp Fac Res Gar Hostile Shots Fired 918 | . . 1 109 98 59 183 . 107 109 3 17 9 2 . . . 42 6 173 Missed 251 | . . . 30 28 9 41 . 27 36 1 5 6 1 . . . 10 2 55 Hits 667 | . . 1 79 70 50 142 . 80 73 2 12 3 1 . . . 32 4 118 Melee 6 | . . . . 1 . 3 . . . 2 . . . . . . . . . Projectile 661 | . . 1 79 69 50 139 . 80 73 . 12 3 1 . . . 32 4 118 AOE 1 | . . . . . . . . . 1 . . . . . . . . . . Critical Strikes 29 | . . . . 2 . 3 . 7 1 1 2 . . . . . 2 . 11 Part Disruptions 1 | . . . . . . . . . . . . . . . . . . . 1 Damage Taken 11521 | . . 8 908 1059 746 1949 . 1715 1431 110 287 26 26 . . . 602 26 2628 Core 2791 | . . . 66 322 38 248 . 372 241 110 39 . . . . . 40 . 1315 Absorbed by Shields . | . . . . . . . . . . . . . . . . . . . . Core Remaining (%) 72 | 100 . 100 83 41 . . . 6 . . . . 54 . . 100 96 . . Volleys Fired 282 | . . . 24 41 24 63 . 30 56 1 14 2 3 . . . 21 . 3 Largest 3 | . . . 2 2 3 3 . 3 2 1 1 1 1 . . . 2 . 1 Hottest 223 | . . . 73 90 78 122 . 223 132 7 30 5 5 . . . 111 . 35 Shots Fired 534 | . . . 48 69 68 178 . 61 61 1 14 2 3 . . . 26 . 3 Gun 482 | . . . 48 69 68 178 . 41 44 . 10 . . . . . 21 . 3 Cannon 17 | . . . . . . . . 17 . . . . . . . . . . . Launcher 3 | . . . . . . . . 3 . . . . . . . . . . . Special 32 | . . . . . . . . . 17 1 4 2 3 . . . 5 . . Kinetic 288 | . . . 24 38 68 132 . 7 . . 10 . . . . . 6 . 3 Thermal 211 | . . . 24 31 . 46 . 51 44 . . . . . . . 15 . . Explosive 3 | . . . . . . . . 3 . . . . . . . . . . . Electromagnetic . | . . . . . . . . . . . . . . . . . . . . Robot Hit Streak 27 | . . . 6 26 11 27 . 14 9 5 8 7 1 . . . 4 . 1 Robot Miss Streak 10 | . . . 3 3 4 10 . 3 5 . 1 . 2 . . . 4 . 1 Penetration Max 1 | . . . . . . 1 . 1 . . . . . . . . . . . Secondary Targets 13 | . . . 2 2 2 7 . . . . . . . . . . . . . Max Gunslinging Chain 2 | . . . 1 1 1 2 . . . . . . . . . . . . . Shots Hit Robots 391 | . . . 42 66 48 117 . 45 39 1 12 2 1 . . . 16 . 2 Core Hits 205 | . . . 22 27 31 85 . 26 7 . 2 . . . . . 5 . . Critical Kills . | . . . . . . . . . . . . . . . . . . . . Critical Parts Destroyed . | . . . . . . . . . . . . . . . . . . . . Critical Strikes 8 | . . . 1 3 . 1 . . 2 . . . . . . . 1 . . Burn 8 | . . . 1 3 . 1 . . 2 . . . . . . . 1 . . Melee Attacks 49 | . . . 20 16 . 2 . . 6 . . . . . . . 4 . 1 Impact . | . . . . . . . . . . . . . . . . . . . . Slashing 44 | . . . 20 16 . 2 . . 6 . . . . . . . . . . Piercing . | . . . . . . . . . . . . . . . . . . . . Sneak Attacks 1 | . . . . . . . . . . . . . . . . . 1 . . Combat Hostiles . | . . . . . . . . . . . . . . . . . . . . Follow-up Attacks 2 | . . . 2 . . . . . . . . . . . . . . . . Damage Inflicted 7459 | . . . 813 1220 932 2178 . 1337 528 . 176 . . . . . 247 . 28 Guns 5830 | . . . 428 801 932 2050 . 640 528 . 176 . . . . . 247 . 28 Cannons 310 | . . . . . . . . 310 . . . . . . . . . . . Explosions 387 | . . . . . . . . 387 . . . . . . . . . . . Melee 932 | . . . 385 419 . 128 . . . . . . . . . . . . . Ramming . | . . . . . . . . . . . . . . . . . . . . Kinetic 3596 | . . . 239 454 932 1583 . 135 . . 176 . . . . . 49 . 28 Thermal 2544 | . . . 189 347 . 467 . 815 528 . . . . . . . 198 . . Explosive 387 | . . . . . . . . 387 . . . . . . . . . . . Electromagnetic . | . . . . . . . . . . . . . . . . . . . . Impact . | . . . . . . . . . . . . . . . . . . . . Slashing 932 | . . . 385 419 . 128 . . . . . . . . . . . . . Piercing . | . . . . . . . . . . . . . . . . . . . . Highest Corruption 6 | . . . . . 2 6 6 6 . . . . . . . . 1 . 6 Average Corruption 3 | . . . . . 1 4 6 6 . . . . . . . . 1 . 2 Corruption Purged . | . . . . . . . . . . . . . . . . . . . . Corruption Blocked . | . . . . . . . . . . . . . . . . . . . . Effects 40 | . . . . . 7 25 1 6 . . . . . . . . 1 . . Message Errors 15 | . . . . . 1 10 . 4 . . . . . . . . . . . Matter Fused 4 | . . . . . 1 3 . . . . . . . . . . . . . Heat Flow Errors 5 | . . . . . 2 2 1 . . . . . . . . . . . . Energy Discharges 4 | . . . . . . 3 . 1 . . . . . . . . . . . Parts Rejected 1 | . . . . . . . . 1 . . . . . . . . . . . Data Loss (minor) 8 | . . . . . 3 5 . . . . . . . . . . . . . Misfires 2 | . . . . . . 1 . . . . . . . . . . 1 . . Alerts 1 | . . . . . . 1 . . . . . . . . . . . . . Overload Shots . | . . . . . . . . . . . . . . . . . . . . Overflow Damage 21 | . . . . 18 . . . 3 . . . . . . . . . . . Projectiles 3 | . . . . . . . . 3 . . . . . . . . . . . Explosions . | . . . . . . . . . . . . . . . . . . . . Melee 18 | . . . . 18 . . . . . . . . . . . . . . . Knockbacks . | . . . . . . . . . . . . . . . . . . . . Impact . | . . . . . . . . . . . . . . . . . . . . Kinetic . | . . . . . . . . . . . . . . . . . . . . Secondary . | . . . . . . . . . . . . . . . . . . . . Self-Inflicted Damage . | . . . . . . . . . . . . . . . . . . . . Shots . | . . . . . . . . . . . . . . . . . . . . Rammed . | . . . . . . . . . . . . . . . . . . . . Targets Rammed . | . . . . . . . . . . . . . . . . . . . . Kicked . | . . . . . . . . . . . . . . . . . . . . Crushed . | . . . . . . . . . . . . . . . . . . . . Highest Temperature 428 | . . . 105 155 195 428 115 301 7 . 2 . . . . . 170 . 15 Average Temperature 100 | . . . 39 49 80 151 115 103 7 . 2 . . . . . 69 . 15 Received Heat Transfer 2326 | . . . 258 531 18 609 . 366 12 . 90 12 . . . . 9 . 421 Effects 5 | . . . . . . 5 . . . . . . . . . . . . . Shutdowns 1 | . . . . . . 1 . . . . . . . . . . . . . Energy Bleed 1 | . . . . . . 1 . . . . . . . . . . . . . Matter Decay 1 | . . . . . . 1 . . . . . . . . . . . . . Short Circuit 1 | . . . . . . 1 . . . . . . . . . . . . . Damage (minor) 1 | . . . . . . 1 . . . . . . . . . . . . . Siege Activations . | . . . . . . . . . . . . . . . . . . . . Martial Activations . | . . . . . . . . . . . . . . . . . . . . Shielding Activations . | . . . . . . . . . . . . . . . . . . . . Robots Disrupted . | . . . . . . . . . . . . . . . . . . . . Combat Hostiles . | . . . . . . . . . . . . . . . . . . . . Robots Corrupted . | . . . . . . . . . . . . . . . . . . . . Combat Hostiles . | . . . . . . . . . . . . . . . . . . . . Parts Fried . | . . . . . . . . . . . . . . . . . . . . Impact Corruptions . | . . . . . . . . . . . . . . . . . . . . Robots Melted 1 | . . . . . . . . . 1 . . . . . . . . . . Combat Hostiles 1 | . . . . . . . . . 1 . . . . . . . . . . Parts Melted 8 | . . . . 3 . . . 1 1 . . . . . . . 3 . . Heat Transferred 5981 | . . . 629 1184 . 900 . 1714 1184 . . . . . . . 370 . . Parts Sabotaged . | . . . . . . . . . . . . . . . . . . . . Parts Stolen . | . . . . . . . . . . . . . . . . . . . . Parts Stripped . | . . . . . . . . . . . . . . . . . . . . Power Chain Reactions . | . . . . . . . . . . . . . . . . . . . . Alert | -11 -10 -10 -9 -8 -7 -7 -7 -7 -6 -6 -6 -6 -6 -5 -5 -5 -4 -3 -3 ------- Run | Yrd Mat Min Mat Mat Fac Gar Fac DSF Fac Was Fac Gar Fac Fac Upp Upp Fac Res Gar Maximum Alert Level 2 | . . . . . . 2 1 1 . . . . . . . . . . . Low Security (%) 85 | 100 100 100 100 100 100 20 . 8 100 100 100 100 100 100 . . 100 100 100 Level 1 6 | . . . . . . 16 100 91 . . . . . . . . . . . Level 2 8 | . . . . . . 62 . . . . . . . . . . . . . Level 3 . | . . . . . . . . . . . . . . . . . . . . Level 4 . | . . . . . . . . . . . . . . . . . . . . Level 5 . | . . . . . . . . . . . . . . . . . . . . High Security . | . . . . . . . . . . . . . . . . . . . . Max Security . | . . . . . . . . . . . . . . . . . . . . Sterilizations 1 | . . . . . . . . 1 . . . . . . . . . . . Peak Influence 581 | . 26 6 193 133 82 581 304 357 186 . 22 12 12 5 . . 103 87 34 Initial 304 | . . 6 1 . 42 46 304 212 186 . . . 6 5 . . . . 12 Average 91 | . 7 6 66 63 24 365 304 276 96 . 1 3 . . . . 25 33 10 Influence Increases 2910 | . 36 . 479 439 293 665 . 285 172 . 60 23 12 . . . 291 87 68 Destroy 0b10 Robot/C 1845 | . . . 340 280 220 460 . 220 120 . 40 . . . . . 105 . 60 Destroy 0b10 Robot/NC 30 | . . . . 5 10 5 . . . . 10 . . . . . . . . Destroy Leader 312 | . . . 100 62 62 30 . 30 10 . 2 . . . . . 16 . . Allied During Kill 25 | . . . . . . . . . 2 . 3 . . . . . 12 . 8 Successful Hack 78 | . 21 . 24 13 . . . . 4 . 5 11 . . . . . . . Disable Machine 30 | . . . 15 15 . . . . . . . . . . . . . . . Anti-Garrison Action 150 | . . . . . . 150 . . . . . . . . . . . . . Destroy Structure 44 | . . . . 4 1 5 . 20 6 . . . . . . . 8 . . Partial Spotted 27 | . 15 . . . . . . . . . . . . . . . . 12 . Lose Combat Pursuer 144 | . . . . 60 . 15 . 15 30 . . 12 12 . . . . . . Active Sensor Use 225 | . . . . . . . . . . . . . . . . . 150 75 . Influence Decreases 2910 | . 20 10 485 346 320 150 277 232 527 2 60 11 12 12 . . 291 70 85 Entered New Map 646 | . . 10 5 . 51 20 277 92 171 2 . . 6 7 . . . . 5 Time Decay 1293 | . 20 . 193 286 269 . . . 286 . 40 . 6 5 . . 138 50 . Lost Part 470 | . . . . 60 . 130 . 140 50 . . . . . . . 30 . 60 Lost Ally 135 | . . . . . . . . . 20 . 20 11 . . . . 44 20 20 Purge Threat 366 | . . . 287 . . . . . . . . . . . . . 79 . . Squads Dispatched 18 | . . . 1 2 2 . . 2 . . 1 . 2 1 . . 6 1 . Investigation 3 | . . . . . . . . . . . . . . . . . 2 1 . Extermination 5 | . . . . . 2 . . . . . . . . 1 . . 2 . . Reinforcement 9 | . . . 1 2 . . . 2 . . . . 2 . . . 2 . . Assault . | . . . . . . . . . . . . . . . . . . . . Garrison 1 | . . . . . . . . . . . 1 . . . . . . . . Intercept . | . . . . . . . . . . . . . . . . . . . . Searches Triggered . | . . . . . . . . . . . . . . . . . . . . Construction Impeded . | . . . . . . . . . . . . . . . . . . . . Haulers Reinforced . | . . . . . . . . . . . . . . . . . . . . Active Scanning Responses 4 | . . . . . . . . . . . . . . . . . 2 1 1 Cargo Convoy Interrupts . | . . . . . . . . . . . . . . . . . . . . Stealth | -11 -10 -10 -9 -8 -7 -7 -7 -7 -6 -6 -6 -6 -6 -5 -5 -5 -4 -3 -3 --------- Run | Yrd Mat Min Mat Mat Fac Gar Fac DSF Fac Was Fac Gar Fac Fac Upp Upp Fac Res Gar Distress Signals 10 | . . . 2 3 . . . . . . 3 . . . . . 2 . . Communications Jammed . | . . . . . . . . . . . . . . . . . . . . Distress Signals . | . . . . . . . . . . . . . . . . . . . . Times Spotted 171 | . 1 3 22 23 17 28 . 12 14 5 13 2 4 . . . 13 1 13 Peak Tracking Total 13 | . 1 3 5 9 4 5 . 6 5 6 9 3 3 1 . . 5 1 13 Tactical Retreats 9 | . . . . 3 . 1 . 1 2 . . 1 1 . . . . . . Traps | -11 -10 -10 -9 -8 -7 -7 -7 -7 -6 -6 -6 -6 -6 -5 -5 -5 -4 -3 -3 ------- Run | Yrd Mat Min Mat Mat Fac Gar Fac DSF Fac Was Fac Gar Fac Fac Upp Upp Fac Res Gar Traps Triggered 8 | . 1 . . . 1 2 . 1 1 . 1 . . . . . . . 1 Indirectly . | . . . . . . . . . . . . . . . . . . . . Trap Hack Attempts . | . . . . . . . . . . . . . . . . . . . . Triggered . | . . . . . . . . . . . . . . . . . . . . Disarmed . | . . . . . . . . . . . . . . . . . . . . Reprogrammed . | . . . . . . . . . . . . . . . . . . . . Reused . | . . . . . . . . . . . . . . . . . . . . Traps Extracted . | . . . . . . . . . . . . . . . . . . . . Installed . | . . . . . . . . . . . . . . . . . . . . Triggered . | . . . . . . . . . . . . . . . . . . . . Machines | -11 -10 -10 -9 -8 -7 -7 -7 -7 -6 -6 -6 -6 -6 -5 -5 -5 -4 -3 -3 ---------- Run | Yrd Mat Min Mat Mat Fac Gar Fac DSF Fac Was Fac Gar Fac Fac Upp Upp Fac Res Gar Machines Disabled 5 | . . . 1 1 . 3 . . . . . . . . . . . . . Max in Single Turn 1 | . . . 1 1 . 1 . . . . . . . . . . . . . Garrison Relay 3 | . . . . . . 3 . . . . . . . . . . . . . Machines Repaired . | . . . . . . . . . . . . . . . . . . . . Machines Dismantled . | . . . . . . . . . . . . . . . . . . . . Machines Sabotaged . | . . . . . . . . . . . . . . . . . . . . Overloaded Fab Kills . | . . . . . . . . . . . . . . . . . . . . Hacking | -11 -10 -10 -9 -8 -7 -7 -7 -7 -6 -6 -6 -6 -6 -5 -5 -5 -4 -3 -3 --------- Run | Yrd Mat Min Mat Mat Fac Gar Fac DSF Fac Was Fac Gar Fac Fac Upp Upp Fac Res Gar Machines Accessed 34 | . 4 . 6 3 1 1 1 . 2 . 4 1 4 1 . . 3 3 . Terminals 22 | . 4 . 5 3 . 1 1 . 1 . 1 1 2 . . . 2 1 . Fabricators 1 | . . . . . . . . . . . . . . 1 . . . . . Repair Stations 1 | . . . . . . . . . . . 1 . . . . . . . . Recycling Units 2 | . . . . . . . . . . . 1 . 1 . . . . . . Scanalyzers 5 | . . . 1 . . . . . 1 . . . 1 . . . 1 1 . Garrison Access 3 | . . . . . 1 . . . . . 1 . . . . . . 1 . Total Hacks 98 | . 11 . 21 11 1 1 1 . 7 . 7 2 8 2 . . 9 17 . Successful 46 | . 5 . 9 7 1 . 1 . 4 . 3 1 2 . . . 3 10 . Failed 51 | . 6 . 11 4 . 1 . . 3 . 4 1 6 2 . . 6 7 . Catastrophic 10 | . 2 . 2 2 . 1 . . . . . . . 1 . . 2 . . Database Lockouts 1 | . . . 1 . . . . . . . . . . . . . . . . Manual 28 | . . . 10 7 . . . . 1 . . . . . . . . 10 . Terminals 72 | . 11 . 17 11 . 1 1 . 5 . 3 2 2 . . . 5 14 . Fabricators 2 | . . . . . . . . . . . . . . 2 . . . . . Repair Stations 1 | . . . . . . . . . . . 1 . . . . . . . . Recycling Units 7 | . . . . . . . . . . . 2 . 5 . . . . . . Scanalyzers 12 | . . . 4 . . . . . 2 . . . 1 . . . 4 1 . Garrison Access 4 | . . . . . 1 . . . . . 1 . . . . . . 2 . Terminal Hacks 33 | . 5 . 6 6 . . 1 . 4 . 1 1 1 . . . 1 7 . Record 2 | . . . 1 . . . . . 1 . . . . . . . . . . Robot Analysis 1 | . 1 . . . . . . . . . . . . . . . . . . Prototype ID Bank 4 | . 1 . . 1 . . . . . . 1 . . . . . . 1 . Open DSF 2 | . . . . . . . 1 . . . . . 1 . . . . . . Branch Access Points 3 | . 1 . 1 . . . . . . . . . . . . . . 1 . Emergency Access Points 2 | . 1 . . . . . . . . . . 1 . . . . . . . Terminal Index 5 | . . . 2 1 . . . . 1 . . . . . . . . 1 . Scanalyzer Index 1 | . . . . 1 . . . . . . . . . . . . . . . Alert Level 2 | . . . . 1 . . . . . . . . . . . . . 1 . Unreport Threat 3 | . . . 2 . . . . . . . . . . . . . 1 . . Locate Traps 2 | . . . . 1 . . . . 1 . . . . . . . . . . Transport Status 1 | . 1 . . . . . . . . . . . . . . . . . . Reinforcement Status 1 | . . . . . . . . . . . . . . . . . . 1 . Recall Investigation 1 | . . . . . . . . . . . . . . . . . . 1 . Recall Reinforcements 1 | . . . . 1 . . . . . . . . . . . . . . . Registered Components 1 | . . . . . . . . . . . . . . . . . . 1 . Zone Layout 1 | . . . . . . . . . 1 . . . . . . . . . . Fabricator Hacks . | . . . . . . . . . . . . . . . . . . . . Repair Station Hacks . | . . . . . . . . . . . . . . . . . . . . Recycling Unit Hacks 2 | . . . . . . . . . . . 1 . 1 . . . . . . Report Inventory 1 | . . . . . . . . . . . 1 . . . . . . . . Retrieve Components 1 | . . . . . . . . . . . . . 1 . . . . . . Scanalyzer 5 | . . . 3 . . . . . . . . . . . . . 2 . . Retrieve Study 5 | . . . 3 . . . . . . . . . . . . . 2 . . Garrison Access Hacks 4 | . . . . . 1 . . . . . 1 . . . . . . 2 . Unlock Access 3 | . . . . . 1 . . . . . 1 . . . . . . 1 . Coupler Status 1 | . . . . . . . . . . . . . . . . . . 1 . Unauthorized Hacks 2 | . . . . 1 . . . . . . . . . . . . . 1 . Terminals 2 | . . . . 1 . . . . . . . . . . . . . 1 . Botnet 2 | . . . . 1 . . . . . . . . . . . . . 1 . Fabricators . | . . . . . . . . . . . . . . . . . . . . Repair Stations . | . . . . . . . . . . . . . . . . . . . . Recycling Units . | . . . . . . . . . . . . . . . . . . . . Scanalyzers . | . . . . . . . . . . . . . . . . . . . . Garrison Access . | . . . . . . . . . . . . . . . . . . . . Data Cores Recovered . | . . . . . . . . . . . . . . . . . . . . Used . | . . . . . . . . . . . . . . . . . . . . Hacking Detections 28 | . 3 . 5 3 . 1 . . 2 . 3 1 4 1 . . 3 2 . Full Trace Events . | . . . . . . . . . . . . . . . . . . . . Feedback Events . | . . . . . . . . . . . . . . . . . . . . Feedback Blocked . | . . . . . . . . . . . . . . . . . . . . Robot Schematics Acquired . | . . . . . . . . . . . . . . . . . . . . Robots Built . | . . . . . . . . . . . . . . . . . . . . Authchips . | . . . . . . . . . . . . . . . . . . . . Time . | . . . . . . . . . . . . . . . . . . . . Total Robot Build Rating . | . . . . . . . . . . . . . . . . . . . . Part Schematics Acquired . | . . . . . . . . . . . . . . . . . . . . Parts Built . | . . . . . . . . . . . . . . . . . . . . Authchips . | . . . . . . . . . . . . . . . . . . . . Time . | . . . . . . . . . . . . . . . . . . . . Total Part Build Rating . | . . . . . . . . . . . . . . . . . . . . Part Studies Acquired 5 | . . . 3 . . . . . . . . . . . . . 2 . . Parts Repaired . | . . . . . . . . . . . . . . . . . . . . Time . | . . . . . . . . . . . . . . . . . . . . Parts Recycled . | . . . . . . . . . . . . . . . . . . . . Recycled Matter . | . . . . . . . . . . . . . . . . . . . . Retrieved Matter . | . . . . . . . . . . . . . . . . . . . . Retrieved Components 1 | . . . . . . . . . . . . . 1 . . . . . . Parts Scanalyzed . | . . . . . . . . . . . . . . . . . . . . Part Schematics Acquired . | . . . . . . . . . . . . . . . . . . . . Parts Damaged . | . . . . . . . . . . . . . . . . . . . . Bothacking | -11 -10 -10 -9 -8 -7 -7 -7 -7 -6 -6 -6 -6 -6 -5 -5 -5 -4 -3 -3 ------------ Run | Yrd Mat Min Mat Mat Fac Gar Fac DSF Fac Was Fac Gar Fac Fac Upp Upp Fac Res Gar Used RIF Installer 2 | . . . . . . 1 . . . . . 1 . . . . . . . Threat Obfuscator 1 | . . . . . . . . . . . . 1 . . . . . . . Robots Hacked 23 | . . . . . . . . . 9 1 3 2 1 . . . 6 . 1 Non-combat 7 | . . . . . . . . . 4 . 1 . 1 . . . 1 . . Combat 16 | . . . . . . . . . 5 1 2 2 . . . . 5 . 1 Robot Hacks Applied 26 | . . . . . . . . . 11 1 4 2 1 . . . 6 . 1 parse_system 1 | . . . . . . . . . . 1 . . . . . . . . . no_distress 1 | . . . . . . . . . . . . . . . . . 1 . . generate_echo 1 | . . . . . . . . . . . 1 . . . . . . . . ignore_repairs 1 | . . . . . . . . . 1 . . . . . . . . . . find_fabricator 1 | . . . . . . . . . 1 . . . . . . . . . . locate_stockpiles 1 | . . . . . . . . . 1 . . . . . . . . . . find_recycling 1 | . . . . . . . . . . . 1 . . . . . . . . check_alert 1 | . . . . . . . . . . . . . 1 . . . . . . find_shortcuts 1 | . . . . . . . . . 1 . . . . . . . . . . find_garrison 1 | . . . . . . . . . 1 . . . . . . . . . . link_fov 1 | . . . . . . . . . 1 . . . . . . . . . . overload_power 1 | . . . . . . . . . 1 . . . . . . . . . . overwrite_iff 6 | . . . . . . . . . 1 . . 2 . . . . 3 . . streamctrl_high 3 | . . . . . . . . . 1 . . . . . . . 1 . 1 formatsys_low 2 | . . . . . . . . . 2 . . . . . . . . . . formatsys_high 3 | . . . . . . . . . . . 2 . . . . . 1 . . Relay Couplers Released 19 | . . . . . . 12 . . 3 . . . . . . . 4 . . Machine Destruction 12 | . . . . . . 12 . . . . . . . . . . . . . Programmers 7 | . . . . . . . . . 3 . . . . . . . 4 . . Attached 7 | . . . . . . . . . 3 . 1 1 . . . . 1 . 1 Fabnet Peak Effective % . | . . . . . . . . . . . . . . . . . . . . Robots Rewired . | . . . . . . . . . . . . . . . . . . . . Allies Hacked . | . . . . . . . . . . . . . . . . . . . . Hacks Repelled . | . . . . . . . . . . . . . . . . . . . . Allies | -11 -10 -10 -9 -8 -7 -7 -7 -7 -6 -6 -6 -6 -6 -5 -5 -5 -4 -3 -3 -------- Run | Yrd Mat Min Mat Mat Fac Gar Fac DSF Fac Was Fac Gar Fac Fac Upp Upp Fac Res Gar Total Allies 14 | . . . . . . . . . 4 . 2 2 . . . . 5 . 1 Largest Group 1 | . . . . . . . . . 1 1 1 1 . . . . 1 1 1 Highest-Rated Group 116 | . . . . . . . . . 21 21 47 32 . . . . 49 49 116 Highest-Rated Ally 116 | . . . . . . . . . 21 21 47 32 . . . . 49 49 116 Total Orders 3 | . . . . . . . . . . . 2 . . . . . . 1 . STAY 1 | . . . . . . . . . . . . . . . . . . 1 . EXPLORE 2 | . . . . . . . . . . . 2 . . . . . . . . Ally Attacks 53 | . . . . . . . . . 6 . 17 2 . . . . 21 3 4 Total Damage 1375 | . . . . . . . . . 55 . 328 85 . . . . 496 88 323 Kills 13 | . . . . . . . . . 1 . 3 . . . . . 5 . 4 Allies Corrupted 2 | . . . . . . . . . . . . . . . . . 1 . 1 Allies Melted . | . . . . . . . . . . . . . . . . . . . . Intel | -11 -10 -10 -9 -8 -7 -7 -7 -7 -6 -6 -6 -6 -6 -5 -5 -5 -4 -3 -3 ------- Run | Yrd Mat Min Mat Mat Fac Gar Fac DSF Fac Was Fac Gar Fac Fac Upp Upp Fac Res Gar Active Infowar (turns) 4575 | . 16 15 216 645 395 . . 210 410 . 207 42 351 296 664 35 876 134 63 Optics 620 | . . . . . . . . 210 410 . . . . . . . . . . Sensors 1741 | . 16 15 216 645 395 . . . . . 47 42 351 14 . . . . . A.S.S. 2054 | . . . . . . . . . . . . . . 282 664 35 876 134 63 IFF 2 | . . . . . . . . . . . . . 2 . . . . . . Triangulation 243 | . . . . . . . . . . . . . . . . . 52 134 57 Cloaking 249 | . . . . . . . . . . . 207 42 . . . . . . . Robot Analysis Total 1 | . 1 . . . . . . . . . . . . . . . . . . Derelict Logs Recovered . | . . . . . . . . . . . . . . . . . . . . Drone Launches 2 | . . . . . . . . . . . 2 . . . . . . . . Drone Recoveries . | . . . . . . . . . . . . . . . . . . . . Exploration | -11 -10 -10 -9 -8 -7 -7 -7 -7 -6 -6 -6 -6 -6 -5 -5 -5 -4 -3 -3 ------------- Run | Yrd Mat Min Mat Mat Fac Gar Fac DSF Fac Was Fac Gar Fac Fac Upp Upp Fac Res Gar Turns Passed 7657 | 76 89 15 604 771 781 986 3 283 625 129 527 192 476 297 664 35 876 134 94 Spaces Moved 4953 | 41 116 25 349 513 454 477 3 96 262 77 296 132 326 201 459 26 779 229 92 Core 1 | 1 . . . . . . . . . . . . . . . . . . . Treads 935 | 40 7 . 206 3 303 158 . . . . . . . . . . 218 . . Legs 2662 | . . . . 242 151 319 3 96 262 77 296 132 326 201 459 26 72 . . Wheels 365 | . . . 97 268 . . . . . . . . . . . . . . . Hover 989 | . 109 25 46 . . . . . . . . . . . . . 489 229 91 Flight 1 | . . . . . . . . . . . . . . . . . . . 1 Fastest Speed 43 | 50 56 56 52 90 122 117 117 115 140 140 140 140 140 140 140 140 43 52 52 Average Speed 123 | 157 64 56 118 107 144 150 117 163 140 164 155 140 140 140 140 140 94 52 58 Slowest Speed 260 | 160 180 56 225 260 156 260 117 250 140 250 250 140 140 140 140 140 250 52 150 Overloaded Moves . | . . . . . . . . . . . . . . . . . . . . Propulsion Burnouts . | . . . . . . . . . . . . . . . . . . . . Robots Hopped . | . . . . . . . . . . . . . . . . . . . . Potential Cave-ins . | . . . . . . . . . . . . . . . . . . . . Cave-ins Triggered . | . . . . . . . . . . . . . . . . . . . . Exploration Rate (%) 27 | 3 31 10 36 39 13 56 . 54 9 76 14 37 9 7 72 9 26 6 23 Regions Visited 19 Branch Regions 3 Pre-discovered Areas . | . . . . . . . . . . . . . . . . . . . . Known Exits Taken 11 | . 1 . 1 1 1 . 1 . . . 1 . . 1 1 1 1 1 . Unknown Exits Taken 3 | 1 . 1 . . . . . . . . . . 1 . . . . . . Scrap Searched 4 | . . 1 . . . . . . . . . . . . 3 . . . . Spaces Dug 8 | . . . . 2 . . . . 6 . . . . . . . . . . Terrain Destroyed 31 | . . . . 2 . 1 . 22 6 . . . . . . . . . . Melee 8 | . . . . 2 . . . . 6 . . . . . . . . . . Projectile 1 | . . . . . . 1 . . . . . . . . . . . . . AOE 22 | . . . . . . . . 22 . . . . . . . . . . . Terrain Rammed . | . . . . . . . . . . . . . . . . . . . . Walls Destroyed . | . . . . . . . . . . . . . . . . . . . . Machines Disabled . | . . . . . . . . . . . . . . . . . . . . Actions | -11 -10 -10 -9 -8 -7 -7 -7 -7 -6 -6 -6 -6 -6 -5 -5 -5 -4 -3 -3 --------- Run | Yrd Mat Min Mat Mat Fac Gar Fac DSF Fac Was Fac Gar Fac Fac Upp Upp Fac Res Gar Total 6003 | 50 129 25 464 653 536 613 2 161 460 79 352 139 345 220 481 25 898 243 128 Wait 325 | . . . 23 36 9 4 . 7 116 2 25 1 . . 21 . 56 13 12 Move 4936 | 40 115 24 348 512 453 476 2 95 262 76 296 131 325 200 458 25 778 228 92 Hop . | . . . . . . . . . . . . . . . . . . . . Pick Up 116 | 4 4 1 17 10 22 17 . 6 7 . 5 2 2 9 1 . 8 1 . Fast Attach 77 | 6 4 . 5 12 2 11 . 13 4 . 3 . 5 . . . 8 . 4 Attach 38 | . . . 1 4 2 7 . 4 3 . 4 . . 2 . . 9 . 2 Detach 7 | . 2 . . 2 . . . . . . 1 . . . . . 1 . 1 Swap 47 | . 1 . 13 5 9 9 . 1 2 . 1 1 2 1 . . 2 . . Drop 111 | . 3 . 16 15 15 19 . 5 4 . 3 2 8 8 1 . 11 1 . Fire 282 | . . . 24 41 24 63 . 30 56 1 14 2 3 . . . 21 . 3 Melee 46 | . . . 17 16 . 2 . . 6 . . . . . . . 4 . 1 Ram . | . . . . . . . . . . . . . . . . . . . . Kick . | . . . . . . . . . . . . . . . . . . . . Crush . | . . . . . . . . . . . . . . . . . . . . Escape Stasis 18 | . . . . . . 5 . . . . . . . . . . . . 13 Rewire . | . . . . . . . . . . . . . . . . . . . . Trap . | . . . . . . . . . . . . . . . . . . . . Miscellaneous . | . . . . . . . . . . . . . . . . . . . . Route ------- -11/Scrapyard -10/Materials (discovered 2 exits: *Mat / *Min) -10/Mines -9/Materials (discovered 3 exits: *Mat / Min x2) -8/Materials -7/Factory -7/Garrison (discovered 2 exits: *Fac x2) -7/Factory -7/DSF -6/Factory -6/Waste -6/Factory -6/Garrison -6/Factory -5/Factory -5/Upper Caves -5/Upper Caves -4/Factory (discovered 2 exits: *Res / *Upp) -3/Research (discovered 3 exits: Qua x2 / Gar) -3/Garrison History --------- Turn | Location | Event 20 | -11/Scrapyard | Discovered new exit (range 15) 77 | -11/Scrapyard | Entered Materials 127 | -10/Materials | Identified exit to Mines 130 | -10/Materials | Discovered new exit (range 16) 166 | -10/Materials | Entered Mines 173 | -10/Mines | Discovered new exit (range 10) 181 | -10/Mines | Entered Materials 181 | -9/Materials | Evolved 2 slots: Propulsion x2 311 | -9/Materials | Build established: Mutant 464 | -9/Materials | Central database locked down 729 | -9/Materials | Identified exit to Mines 741 | -9/Materials | Discovered new exit (range 3) 742 | -9/Materials | Identified exit to Materials 785 | -9/Materials | Entered another Materials area 785 | -8/Materials | Evolved 2 slots: Utility x2 1149 | -8/Materials | Core integrity fell below 50% 1164 | -8/Materials | Lost 6 parts (1p3n2w) 1462 | -8/Materials | Build established: Scavenger-Mutant 1463 | -8/Materials | Discovered new exit (range 16) 1552 | -8/Materials | Identified exit to Factory 1556 | -8/Materials | Entered Factory 1556 | -7/Factory | Evolved 2 slots: Utility x1, Weapon x1 2077 | -7/Factory | Build established: Gunner 2329 | -7/Factory | Identified exit to Garrison 2337 | -7/Factory | Entered Garrison 2526 | -7/Garrison | Triggered checkpoint 2543 | -7/Garrison | Garrison Relay disabled 2597 | -7/Garrison | Triggered checkpoint 2642 | -7/Garrison | Lost 3 parts (1p1n1u) 2819 | -7/Garrison | Discovered new exit (range 10) 2945 | -7/Garrison | Triggered checkpoint 3034 | -7/Garrison | Lost 6 parts (1p2n1u2w) 3056 | -7/Garrison | Garrison Relay disabled 3162 | -7/Garrison | Discovered new exit (range 12) 3228 | -7/Garrison | Installed Relay Interface Framework 3244 | -7/Garrison | Garrison Relay disabled 3271 | -7/Garrison | Triggered checkpoint 3322 | -7/Garrison | Identified exit to Factory 3323 | -7/Garrison | Entered Factory 3326 | -7/Factory | Identified exit to DSF 3326 | -7/Factory | Entered DSF 3356 | -7/DSF | Additional patrols routed to DSF 3400 | -7/DSF | Discovered new exit (range 20) 3424 | -7/DSF | Lost 6 parts (2n1u3w) 3428 | -7/DSF | Core integrity fell below 50% 3484 | -7/DSF | Core integrity fell below 20% 3509 | -7/DSF | Sterilization system engaged 3516 | -7/DSF | Lost 8 parts (2p2n1u3w) 3516 | -7/DSF | Found Prototype Device 3529 | -7/DSF | Ambient heat levels rising (+10) 3544 | -7/DSF | Ambient heat levels rising (+10) 3559 | -7/DSF | Ambient heat levels rising (+10) 3574 | -7/DSF | Ambient heat levels rising (+10) 3589 | -7/DSF | Ambient heat levels rising (+10) 3592 | -7/DSF | Identified exit to Factory 3604 | -7/DSF | Ambient heat levels rising (+10) 3609 | -7/DSF | Entered Factory 3609 | -6/Factory | Evolved 2 slots: Utility x2 3709 | -6/Factory | Build established: Bothacker-Mutant 4057 | -6/Factory | Lost 3 parts (1p1u1w) 4234 | -6/Factory | Sucked down chute 4234 | -6/Factory | Entered Waste 4244 | -6/Waste | 1 allies followed down the chute 4246 | -6/Waste | Spotted C-40 Crusher 4254 | -6/Waste | Spotted C-40 Crusher 4265 | -6/Waste | Spotted C-40 Crusher 4293 | -6/Waste | Spotted C-40 Crusher 4309 | -6/Waste | Crushed by Compactor (1 part destroyed) 4310 | -6/Waste | Spotted C-40 Crusher 4318 | -6/Waste | Crushed by Compactor (1 part destroyed) 4345 | -6/Waste | Discovered new exit (range 10) 4363 | -6/Waste | Entered Factory 4881 | -6/Factory | Garrison activated, responded to threat 4890 | -6/Factory | Identified exit to Garrison 4890 | -6/Factory | Entered Garrison 4906 | -6/Garrison | Expanded RIF knowledge: Threat Obfuscation 4942 | -6/Garrison | Build established: Bothacker-Gunner 5036 | -6/Garrison | Triggered checkpoint 5040 | -6/Garrison | Triggered checkpoint 5043 | -6/Garrison | Triggered checkpoint 5070 | -6/Garrison | Discovered new exit (range 8) 5082 | -6/Garrison | Entered Factory 5471 | -6/Factory | Discovered new exit (range 8) 5558 | -6/Factory | Entered another Factory area 5558 | -5/Factory | Evolved 2 slots: Utility x2 5573 | -5/Factory | Identified Active Sensor Suite 5768 | -5/Factory | Discovered new exit (range 7) 5784 | -5/Factory | Identified exit to Upper Caves 5855 | -5/Factory | Entered Upper Caves 5870 | -5/Upper Caves | Encountered a Warlord checkpoint 5874 | -5/Upper Caves | Build established: Bothacker-Assassin 6512 | -5/Upper Caves | Discovered new exit (range 5) 6516 | -5/Upper Caves | Identified exit to Upper Caves 6519 | -5/Upper Caves | Entered another Upper Caves area 6543 | -5/Upper Caves | Discovered new exit (range 9) 6553 | -5/Upper Caves | Identified exit to Factory 6554 | -5/Upper Caves | Entered Factory 6554 | -4/Factory | Evolved 2 slots: Utility x2 6784 | -4/Factory | Spotted B-86 Titan 6823 | -4/Factory | Discovered new exit (range 6) 6832 | -4/Factory | Identified exit to Upper Caves 7172 | -4/Factory | Lost 3 parts (1n2w) 7368 | -4/Factory | Discovered new exit (range 9) 7371 | -4/Factory | Identified exit to Research 7430 | -4/Factory | Entered Research 7430 | -3/Research | Accompanied by 1 ally 7430 | -3/Research | Evolved 2 slots: Power x1, Utility x1 7467 | -3/Research | Identified exit to Quarantine 7537 | -3/Research | Spotted B-86 Titan 7546 | -3/Research | Identified exit to Garrison 7564 | -3/Research | Entered Garrison 7572 | -3/Garrison | Spotted B-75 Beast 7611 | -3/Garrison | Spotted B-86 Titan 7618 | -3/Garrison | Hijacked Titan 8a control node with streamctrl_high 7644 | -3/Garrison | Core integrity fell below 50% 7653 | -3/Garrison | Core integrity fell below 20% 7658 | -3/Garrison | Destroyed by S-43 Plague with Heavy Machine Gun Last Messages --------------- 07635_ S-43 Plague misfires. 07636_ P-80 Master resets S-43 Plague, system corruption cleaned. 07636_ Mic. Fission Core+ destroyed. 07639_ Slug penetrates S-43 Plague. 07639_ Slug penetrates Wall. 07640_ Railgun destroyed. 07642_ Relay Coupler [Behemoth] destroyed. 07642_ Acquired Hvy. Machine Gun. 07646_ Hvy. Machine Gun destroyed. 07647_ Acquired 24 matter. 07649_ Relay Coupler [Sentry] destroyed. 07650_ Acquired Xenon Bombardment Thruster. 07651_ Active Sensor Suite destroyed. 07651_ Triangulator destroyed. 07652_ G-67 Veteran IFF system glitched. 07653_ Critical hit (Burn: +50). 07655_ P-80 Master resets G-67 Veteran, system corruption cleaned. 07656_ Acquired Xenon Bombardment Thruster. Map ----- +----------------------------------------------------+ | ????????????????????????????????????? ???? | | ????????????????????????????????????? ????? | | ?????????????????????????????????????? """ ????? | | ?????????????????????????????????????? ?""" ?????? | | ??????????????????????????????????????????##?????? | | ?????????????????????????????##################### | | ?????????????????????????????# | | ?????????????????????????????# | | ?????????????????????????????# ^ | | ?????????????????????????????# ################# | | ?????????????????????????????# #???????????????? | | ??????????????????#??????????# #???????????????? | | ??????????????????# ?????????# #???????????????? | | ??????????????????# ????????# #???????????????? | | ??????????????????# ??####### #???????????????? | | ??????????????????# ?#%! ## #???????????????? | | ??????????????????# ##!= ## #???????????????? | | ??????????????????# * % #???????????????? | | ??????????????????# #???????????????? | | ??????????????????# g #???????????????? | | ??????????????????# ## ## #???????????????? | | ????????????????### ## g## ###?????????????? | | ????????????????# ]!= g [ #?????????????? | | ????????????????# *!%!% g!% #?????????????? | | ????????????????# =!% % p * #?????????????? | | ?????????????# ; @ s p #?????????????? | | ?????????????# #### ## ## ###?????????????? | | ??????????????????# ?# % ##" #???????????????? | | ????????????????? %" ??????????????? | | ??????????????? ????????????? | | ??????????????##### #####???????????? | | ??????????????????## ## ######???????????????? | | ???????????????????# ?#CC C#????????????????????? | | ???????????????????# ??######????????????????????? | | ???????????????????# ????????????????????????????? | | ???????????????????#?????????????????????????????? | | ?????????????????????????????????????????????????? | | ?????????????????????????????????????????????????? | | ?????????????????????????????????????????????????? | | ?????????????????????????????????????????????????? | | ?????????????????????????????????????????????????? | | ?????????????????????????????????????????????????? | | ?????????????????????????????????????????????????? | | ?????????????????????????????????????????????????? | | ?????????????????????????????????????????????????? | | ?????????????????????????????????????????????????? | | ?????????????????????????????????????????????????? | | ?????????????????????????????????????????????????? | | ?????????????????????????????????????????????????? | | ?????????????????????????????????????????????????? | +----------------------------------------------------+ Best States ------------- Heat Dissipation 59 Energy Generation 21 Energy Capacity 315 Matter Stores 300 Matter Capacity 300 Sight Range 20 Robot Scan Range 20 Terrain Scan Density 10 Cloak Strength 2 Additional Mass Support 9 Armor Coverage 150 Evasion (%) 56 Targeting Accuracy 16 Recoil Reduction 4 Offensive Hacking 24 Defensive Hacking 14 Relay Coupler Types 3 Relay Coupler Value 54 Authchip Count 2 Item Schematics ----------------- None Robot Schematics ------------------ None Fabricated ------------ Nothing Repaired ---------- Nothing Studied --------- Hover Unit | -9/Materials | Hacked Imp. Ion Engine | -9/Materials | Hacked Hvy. Assault Rifle | -9/Materials | Hacked Gravmag Array | -4/Factory | Hacked Mic. Fission Core | -4/Factory | Hacked Alien Tech Used ----------------- None Achievements -------------- Botjacking Hack The Planet Let Me Out Of Here Some Acronyms Are Better Than Others Versatile You Will Be Upgraded Challenges ------------ None Game ------ Seed BeamImpactCompressor Manual? 0 Play Time 02:22:23 Cumulative 23.8 hours Start 2026.04.25 @ 03:45:04 End 2026.04.26 @ 07:42:43 Sessions 5 Manual Loads 0 Difficulty Rogue Special Mode None Game No. 29 Rogue 29 Adventurer 0 Explorer 0 Win Type - Total 0 Types 0/0/0/0/0/0/0/0/0/0 Lore% 13 Gallery% 27 Achievement% 24 Wizard Run 0 Options --------- Layout 1 ASCII 0 Keyboard 0 Movement Mouse Keybinds 0 Fullscreen 2 Font 24/Smallcaps Map View 50x35 Zoom Use 0% Tactical HUD 1 Map Filters NONE Filters NONE Steam 1 RUN: 873e403a-f8d4-4e79-b500-24ccb6ce223f